[Event "African Games-chT 2019"]
[Site "Casablanca"]
[Date "2019.08.25"]
[Round "9.17"]
[White "Adu, Oladapo"]
[Black "Zaibi, Amir"]
[Result "1-0"]
[ECO "B40"]
[WhiteElo "2273"]
[BlackElo "2367"]
[Annotator "NA"]
[PlyCount "107"]
[EventDate "2019.08.24"]
[EventType "team-tourn"]
[EventCountry "MAR"]
[SourceTitle "playchess.com"]
[Source "ChessBase"]
[SourceQuality "1"]
[WhiteTeam "Nigeria"]
[BlackTeam "Tunisia"]
[WhiteTeamCountry "NGR"]
[BlackTeamCountry "TUN"]
[TimeControl "900+10"]

1. e4 {[%emt 0:00:00]} c5 {[%emt 0:00:23]} 2. Nf3 {[%emt 0:00:00]} e6 {[%emt 0:00:01]} 3. d3 {[%emt 0:00:07]} d5 {[%emt 0:00:01]} 4. Nbd2 {[%emt 0:00:04]} Nc6 {[%emt 0:00:01]} 5. g3 {[%emt 0:00:04]} Bd6 {[%emt 0:00:02]} 6. Bg2 {[%emt 0:00:05]} Nge7 {[%emt 0:00:01]} 7. O-O {[%emt 0:00:05]} O-O {[%emt 0:00:01]} 8. Re1 {[%emt 0:00:05]} f5 {[%emt 0:00:01]} 9. e5 {[%emt 0:01:04]} Bc7 {[%emt 0:00:02]} 10. c3 {[%emt 0:00:22]} f4 {[%emt 0:00:19]} 11. d4 {[%emt 0:00:14]} cxd4 {[%emt 0:00:32]} 12. cxd4 {[%emt 0:00:02]} a5 {[%emt 0:00:36]} 13. Nb3 {[%emt 0:00:08]} fxg3 {[%emt 0:01:00]} 14. hxg3 {[%emt 0:00:03]} b6 {[%emt 0:00:48]} 15. Be3 {[%emt 0:01:44]} a4 {[%emt 0:00:04]} 16. Nbd2 {[%emt 0:00:06]} a3 {[%emt 0:01:05]} 17. b3 {[%emt 0:00:41]} Nb4 {[%emt 0:00:12]} 18. Nf1 {[%emt 0:01:24]} Ba6 {[%emt 0:00:04]} 19. Qd2 {[%emt 0:00:01]} Nd3 {[%emt 0:00:47]} 20. Red1 {[%emt 0:00:01]} Nc6 {[%emt 0:00:38]} 21. N1h2 {[%emt 0:00:13]} Qd7 {[%emt 0:01:06]} 22. Bf1 {[%emt 0:00:26]} Ncb4 {[%emt 0:00:14]} 23. Ne1 {[%emt 0:00:29]} Nxe1 {[%emt 0:00:18]} 24. Rxe1 {[%emt 0:00:11]} Bxf1 {[%emt 0:00:20]} 25. Rxf1 {[%emt 0:00:07]} Qb5 {[%emt 0:00:50]} 26. Rfc1 {[%emt 0:00:02]} Rfc8 {[%emt 0:00:26]} 27. Rc3 {[%emt 0:00:02]} Bd8 {[%emt 0:00:52]} 28. Rac1 {[%emt 0:00:01]} Rxc3 {[%emt 0:00:05]} 29. Rxc3 {[%emt 0:00:01]} Be7 {[%emt 0:03:19]} 30. Nf3 {[%emt 0:00:09]} Qd7 {[%emt 0:00:18]} 31. Ne1 {[%emt 0:02:02]} Rc8 {[%emt 0:00:19]} 32. Rxc8+ {[%emt 0:00:03]} Qxc8 {[%emt 0:00:01]} 33. Kg2 {[%emt 0:00:01]} Qa6 {[%emt 0:00:46]} 34. Bg5 {[%emt 0:02:13]} Bf8 {[%emt 0:00:02]} 35. Be3 {[%emt 0:00:24]} h6 {[%emt 0:00:02]} 36. Bf4 {[%emt 0:00:03]} Qb5 {[%emt 0:00:06]} 37. Be3 {[%emt 0:00:03]} Qa6 {[%emt 0:01:30]} 38. Bf4 {[%emt 0:00:10]} Qb5 {[%emt 0:00:42]} 39. Be3 {[%emt 0:00:09]} Nc6 {[%emt 0:00:35]} 40. Nd3 {[%emt 0:00:13]} Bb4 {[%emt 0:00:09]} 41. Qd1 {[%emt 0:00:07]} Bc3 {[%emt 0:00:08]} 42. Nf4 {[%emt 0:00:02]} Nb4 {[%emt 0:00:20]} 43. Qg4 {[%emt 0:00:18]} Qd7 {[%emt 0:00:17]} 44. Nxe6 {[%emt 0:00:06]} Nxa2 {[%emt 0:01:00]} 45. Bxh6 {[%emt 0:00:02]} Nb4 {[%emt 0:00:41]} 46. Bxg7 {[%emt 0:00:03]} a2 {[%emt 0:00:02]} 47. Bf6+ {[%emt 0:00:06]} Kf7 {[%emt 0:00:06]} 48. Nd8+ {[%emt 0:00:14]} Qxd8 {[%emt 0:00:12]} 49. Qg7+ {[%emt 0:00:43]} Ke6 {[%emt 0:00:22]} 50. Bxd8 {[%emt 0:00:02]} Nc6 {[%emt 0:00:37]} 51. Qf6+ {[%emt 0:00:13]} Kd7 {[%emt 0:00:01]} 52. Qd6+ {[%emt 0:00:02]} Ke8 {[%emt 0:00:00]} 53. Qxc6+ {[%emt 0:00:03]} Kxd8 {[%emt 0:00:01]} 54. Qxc3 {[%emt 0:00:04]} 1-0

[Event "African Games-chT 2019"]
[Site "Casablanca"]
[Date "2019.08.25"]
[Round "9.18"]
[White "Boudriga, Mohamed Ali"]
[Black "Osunfuyi, Abimbola"]
[Result "1/2-1/2"]
[ECO "B51"]
[WhiteElo "2325"]
[BlackElo "2235"]
[Annotator "NA"]
[PlyCount "96"]
[EventDate "2019.08.24"]
[EventType "team-tourn"]
[EventCountry "MAR"]
[SourceTitle "playchess.com"]
[Source "ChessBase"]
[SourceQuality "1"]
[WhiteTeam "Tunisia"]
[BlackTeam "Nigeria"]
[WhiteTeamCountry "TUN"]
[BlackTeamCountry "NGR"]
[TimeControl "900+10"]

1. e4 {[%emt 0:00:33]} c5 {[%emt 0:00:00]} 2. Nf3 {[%emt 0:00:00]} d6 {[%emt 0:00:09]} 3. Bb5+ {[%emt 0:00:03]} Nd7 {[%emt 0:00:15]} 4. c4 {[%emt 0:00:04]} Ngf6 {[%emt 0:00:30]} 5. d3 {[%emt 0:00:03]} a6 {[%emt 0:00:16]} 6. Ba4 {[%emt 0:00:01]} Rb8 {[%emt 0:00:33]} 7. Nc3 {[%emt 0:00:03]} g6 {[%emt 0:00:51]} 8. O-O {[%emt 0:00:03]} Bg7 {[%emt 0:00:02]} 9. h3 {[%emt 0:00:06]} O-O {[%emt 0:00:03]} 10. Be3 {[%emt 0:01:40]} Ne8 {[%emt 0:01:12]} 11. d4 {[%emt 0:01:02]} b6 {[%emt 0:00:07]} 12. Qe2 {[%emt 0:01:43]} Nc7 {[%emt 0:00:20]} 13. Rfd1 {[%emt 0:00:04]} Ne6 {[%emt 0:01:32]} 14. d5 {[%emt 0:04:59]} Nc7 {[%emt 0:00:05]} 15. Bc6 {[%emt 0:00:02]} Ne5 {[%emt 0:02:56]} 16. Nxe5 {[%emt 0:00:03]} dxe5 {[%emt 0:00:01]} 17. Rab1 {[%emt 0:00:11]} Qd6 {[%emt 0:00:20]} 18. a3 {[%emt 0:00:06]} f5 {[%emt 0:00:55]} 19. f3 {[%emt 0:00:14]} f4 {[%emt 0:00:21]} 20. Bf2 {[%emt 0:00:01]} a5 {[%emt 0:01:29]} 21. b4 {[%emt 0:00:27]} cxb4 {[%emt 0:00:06]} 22. axb4 {[%emt 0:00:02]} axb4 23. Na4 Na6 {[%emt 0:00:49]} 24. Nxb6 {[%emt 0:00:30]} Nc5 {[%emt 0:00:42]} 25. Na4 {[%emt 0:00:13]} Nxa4 {[%emt 0:00:10]} 26. Bxa4 {[%emt 0:00:02]} Ba6 {[%emt 0:00:18]} 27. Qc2 {[%emt 0:00:04]} g5 {[%emt 0:00:16]} 28. c5 {[%emt 0:00:02]} Qg6 {[%emt 0:00:02]} 29. Bd7 {[%emt 0:00:03]} h5 {[%emt 0:00:06]} 30. c6 {[%emt 0:00:07]} Bc8 {[%emt 0:00:06]} 31. Bxc8 {[%emt 0:01:54]} Rfxc8 {[%emt 0:00:07]} 32. Qc4 {[%emt 0:00:16]} Kh8 {[%emt 0:00:11]} 33. Rxb4 {[%emt 0:00:09]} Rxb4 {[%emt 0:00:03]} 34. Qxb4 {[%emt 0:00:01]} g4 {[%emt 0:00:05]} 35. hxg4 {[%emt 0:00:11]} hxg4 {[%emt 0:00:02]} 36. fxg4 {[%emt 0:00:17]} Qxg4 {[%emt 0:00:18]} 37. Rd3 {[%emt 0:00:02]} Bf6 {[%emt 0:00:07]} 38. Rh3+ {[%emt 0:00:05]} Kg7 {[%emt 0:00:03]} 39. Qb3 {[%emt 0:00:56]} Ra8 {[%emt 0:01:15]} 40. Qf3 {[%emt 0:00:11]} Ra1+ {[%emt 0:00:07]} 41. Kh2 {[%emt 0:00:03]} Qxf3 {[%emt 0:00:43]} 42. Rxf3 {[%emt 0:01:10]} Rc1 {[%emt 0:00:02]} 43. Kh3 {[%emt 0:00:15]} Kf7 {[%emt 0:00:11]} 44. Rb3 {[%emt 0:00:04]} e6 {[%emt 0:00:31]} 45. Rb7+ {[%emt 0:00:30]} Kg6 {[%emt 0:00:03]} 46. c7 {[%emt 0:01:00]} exd5 {[%emt 0:00:16]} 47. exd5 {[%emt 0:00:04]} Kf5 {[%emt 0:00:04]} 48. d6 {[%emt 0:00:40]} Rh1# {[%emt 0:00:06]} 1/2-1/2

[Event "African Games-chT 2019"]
[Site "Casablanca"]
[Date "2019.08.25"]
[Round "9.19"]
[White "Ogbiyoyo, Perpetual Eloho"]
[Black "Marzouk, Amira"]
[Result "0-1"]
[ECO "B23"]
[WhiteElo "1831"]
[BlackElo "1698"]
[Annotator "NA"]
[PlyCount "83"]
[EventDate "2019.08.24"]
[EventType "team-tourn"]
[EventCountry "MAR"]
[SourceTitle "playchess.com"]
[Source "ChessBase"]
[SourceQuality "1"]
[WhiteTeam "Nigeria"]
[BlackTeam "Tunisia"]
[WhiteTeamCountry "NGR"]
[BlackTeamCountry "TUN"]
[TimeControl "900+10"]

1. e4 {[%emt 0:00:00]} c5 {[%emt 0:00:24]} 2. Nc3 {[%emt 0:00:00]} d6 {[%emt 0:00:03]} 3. f4 {[%emt 0:00:00]} a6 {[%emt 0:00:02]} 4. g3 {[%emt 0:00:04]} Nc6 {[%emt 0:00:14]} 5. Bg2 {[%emt 0:00:02]} Nf6 {[%emt 0:00:14]} 6. Nh3 {[%emt 0:00:03]} g6 {[%emt 0:00:25]} 7. O-O {[%emt 0:00:05]} Bg7 {[%emt 0:00:08]} 8. d3 {[%emt 0:00:03]} h5 {[%emt 0:00:31]} 9. Nf2 {[%emt 0:01:15]} Bd7 {[%emt 0:01:08]} 10. h3 {[%emt 0:00:33]} Nd4 {[%emt 0:01:26]} 11. Ne2 {[%emt 0:00:58]} Nxe2+ {[%emt 0:00:21]} 12. Qxe2 {[%emt 0:00:02]} Bc6 {[%emt 0:00:15]} 13. e5 {[%emt 0:02:09]} dxe5 {[%emt 0:01:04]} 14. fxe5 {[%emt 0:00:05]} Nd5 {[%emt 0:02:22]} 15. e6 {[%emt 0:00:27]} f5 {[%emt 0:00:32]} 16. c4 {[%emt 0:01:35]} Nc7 {[%emt 0:01:11]} 17. Bxc6+ {[%emt 0:00:57]} bxc6 {[%emt 0:00:02]} 18. Qf3 {[%emt 0:01:01]} O-O {[%emt 0:02:58]} 19. Qxc6 {[%emt 0:00:25]} Bd4 {[%emt 0:00:02]} 20. Bf4 {[%emt 0:01:02]} Rc8 {[%emt 0:00:03]} 21. Rad1 {[%emt 0:02:11]} Rf6 {[%emt 0:01:00]} 22. Bxc7 {[%emt 0:01:58]} Qxc7 {[%emt 0:00:57]} 23. Qxc7 {[%emt 0:00:05]} Rxc7 {[%emt 0:00:01]} 24. b3 {[%emt 0:00:31]} Rxe6 {[%emt 0:00:12]} 25. Rfe1 {[%emt 0:00:04]} Rxe1+ {[%emt 0:00:18]} 26. Rxe1 {[%emt 0:00:02]} Kf7 {[%emt 0:00:01]} 27. Kg2 {[%emt 0:00:01]} Rc6 {[%emt 0:00:34]} 28. h4 {[%emt 0:00:14]} Re6 {[%emt 0:00:08]} 29. Rxe6 {[%emt 0:00:16]} Kxe6 {[%emt 0:00:02]} 30. Nh3 {[%emt 0:00:10]} Be3 {[%emt 0:00:14]} 31. Kf3 {[%emt 0:00:04]} Bc1 {[%emt 0:00:04]} 32. a4 {[%emt 0:00:28]} Ke5 {[%emt 0:00:13]} 33. Ng1 {[%emt 0:00:33]} Bh6 {[%emt 0:00:30]} 34. Ne2 {[%emt 0:00:05]} e6 {[%emt 0:00:23]} 35. Kg2 {[%emt 0:00:53]} Bd2 {[%emt 0:00:48]} 36. Kf3 {[%emt 0:00:06]} Bh6 {[%emt 0:00:02]} 37. Kg2 {[%emt 0:00:06]} Bd2 {[%emt 0:00:04]} 38. Kf3 {[%emt 0:00:04]} Bh6 {[%emt 0:00:04]} 39. Kf2 {[%emt 0:00:28]} Bd2 {[%emt 0:00:21]} 40. Kf3 {[%emt 0:00:01]} Bh6 {[%emt 0:00:04]} 41. Kf2 {[%emt 0:00:05]} Bd2 {[%emt 0:00:13]} 42. Kf3 {[%emt 0:00:02]} 0-1

[Event "African Games-chT 2019"]
[Site "Casablanca"]
[Date "2019.08.25"]
[Round "9.20"]
[White "Miladi, Amen"]
[Black "Ofowino, Toritsemuwa"]
[Result "0-1"]
[ECO "B00"]
[WhiteElo "1811"]
[BlackElo "1877"]
[Annotator "NA"]
[PlyCount "112"]
[EventDate "2019.08.24"]
[EventType "team-tourn"]
[EventCountry "MAR"]
[SourceTitle "playchess.com"]
[Source "ChessBase"]
[SourceQuality "1"]
[WhiteTeam "Tunisia"]
[BlackTeam "Nigeria"]
[WhiteTeamCountry "TUN"]
[BlackTeamCountry "NGR"]
[TimeControl "900+10"]

1. e4 {[%emt 0:00:27]} d6 {[%emt 0:00:00]} 2. d4 {[%emt 0:00:01]} Nf6 {[%emt 0:00:00]} 3. Bd3 {[%emt 0:00:09]} c6 {[%emt 0:00:02]} 4. Bg5 {[%emt 0:00:17]} Qa5+ {[%emt 0:00:27]} 5. Qd2 {[%emt 0:00:21]} Qxd2+ {[%emt 0:00:50]} 6. Nxd2 {[%emt 0:00:02]} h6 {[%emt 0:00:07]} 7. Bh4 {[%emt 0:00:08]} g5 {[%emt 0:00:04]} 8. Bg3 {[%emt 0:00:01]} Nh5 {[%emt 0:00:10]} 9. Ne2 {[%emt 0:00:38]} Bg7 {[%emt 0:00:03]} 10. f3 {[%emt 0:01:06]} Nxg3 {[%emt 0:00:21]} 11. hxg3 {[%emt 0:00:06]} Nd7 {[%emt 0:00:24]} 12. O-O-O {[%emt 0:00:17]} Nb6 {[%emt 0:00:02]} 13. f4 {[%emt 0:00:23]} Bg4 {[%emt 0:00:14]} 14. Nf3 {[%emt 0:00:23]} O-O-O {[%emt 0:00:11]} 15. fxg5 {[%emt 0:00:12]} Bxf3 {[%emt 0:00:01]} 16. gxf3 {[%emt 0:00:06]} hxg5 {[%emt 0:00:01]} 17. c3 {[%emt 0:00:25]} Rxh1 18. Rxh1 {[%emt 0:00:02]} Rh8 {[%emt 0:01:46]} 19. Rxh8+ {[%emt 0:00:15]} Bxh8 {[%emt 0:00:01]} 20. f4 {[%emt 0:00:21]} gxf4 {[%emt 0:00:21]} 21. gxf4 {[%emt 0:00:03]} Bg7 {[%emt 0:00:00]} 22. e5 {[%emt 0:00:20]} dxe5 {[%emt 0:00:21]} 23. fxe5 {[%emt 0:00:06]} Bh6+ {[%emt 0:00:08]} 24. Kc2 {[%emt 0:00:02]} Nd5 {[%emt 0:00:04]} 25. Bf5+ {[%emt 0:00:33]} e6 {[%emt 0:00:05]} 26. Bh7 {[%emt 0:00:11]} Kd7 {[%emt 0:00:04]} 27. c4 {[%emt 0:00:13]} Ne7 {[%emt 0:00:59]} 28. Ng3 {[%emt 0:00:47]} Nc8 {[%emt 0:05:48]} 29. Ne4 {[%emt 0:00:26]} b6 {[%emt 0:00:24]} 30. Nf6+ {[%emt 0:00:20]} Kd8 {[%emt 0:00:24]} 31. Kd3 {[%emt 0:00:30]} Bg5 {[%emt 0:00:05]} 32. Ne4 {[%emt 0:00:32]} Bc1 {[%emt 0:00:02]} 33. b3 {[%emt 0:00:03]} Ke7 {[%emt 0:00:01]} 34. Nf6 {[%emt 0:00:14]} Bg5 {[%emt 0:00:14]} 35. Ng4 {[%emt 0:00:36]} Kf8 {[%emt 0:00:13]} 36. Be4 {[%emt 0:01:10]} Ne7 {[%emt 0:00:07]} 37. Nf6 {[%emt 0:00:14]} Bxf6 {[%emt 0:00:53]} 38. exf6 {[%emt 0:00:02]} Ng8 {[%emt 0:00:01]} 39. Bxc6 {[%emt 0:00:06]} Nxf6 {[%emt 0:00:01]} 40. d5 {[%emt 0:00:09]} Ke7 {[%emt 0:00:16]} 41. Kd4 {[%emt 0:00:10]} Kd6 {[%emt 0:00:01]} 42. b4 {[%emt 0:00:42]} exd5 {[%emt 0:00:02]} 43. cxd5 {[%emt 0:00:46]} Ng8 {[%emt 0:00:39]} 44. Be8 {[%emt 0:00:38]} f5 {[%emt 0:00:05]} 45. Bf7 {[%emt 0:00:58]} Ne7 {[%emt 0:00:01]} 46. Be6 {[%emt 0:00:13]} f4 {[%emt 0:00:02]} 47. a3 {[%emt 0:00:31]} f3 {[%emt 0:00:21]} 48. Ke3 {[%emt 0:00:02]} Nxd5+ {[%emt 0:00:00]} 49. Bxd5 {[%emt 0:02:04]} Kxd5 {[%emt 0:00:00]} 50. Kxf3 {[%emt 0:00:01]} Kc4 {[%emt 0:00:00]} 51. Ke4 {[%emt 0:01:07]} Kb3 {[%emt 0:00:00]} 52. Kd5 {[%emt 0:00:40]} Kxa3 {[%emt 0:00:00]} 53. b5 {[%emt 0:00:18]} Kb4 {[%emt 0:00:00]} 54. Kc6 {[%emt 0:00:17]} Kc4 {[%emt 0:00:00]} 55. Kb7 {[%emt 0:00:31]} Kxb5 {[%emt 0:00:00]} 56. Kxa7 {[%emt 0:00:05]} Kc5 {[%emt 0:00:00]} 0-1

[Event "African Games-chT 2019"]
[Site "Casablanca"]
[Date "2019.08.25"]
[Round "9.22"]
[White "Ebosse, Kingue Victor Patric"]
[Black "Traore, Bakary"]
[Result "0-1"]
[ECO "C42"]
[WhiteElo "2055"]
[BlackElo "2189"]
[Annotator "NA"]
[PlyCount "48"]
[EventDate "2019.08.24"]
[EventType "team-tourn"]
[EventCountry "MAR"]
[SourceTitle "playchess.com"]
[Source "ChessBase"]
[SourceQuality "1"]
[WhiteTeam "CMR"]
[BlackTeam "Mali"]
[BlackTeamCountry "MLI"]
[TimeControl "900+10"]

1. e4 e5 {[%emt 0:00:00]} 2. Nf3 {[%emt 0:00:00]} Nf6 {[%emt 0:00:00]} 3. Nxe5 {[%emt 0:00:00]} d6 {[%emt 0:00:00]} 4. Nf3 {[%emt 0:00:00]} Nxe4 {[%emt 0:00:00]} 5. d4 {[%emt 0:00:00]} d5 {[%emt 0:00:00]} 6. Bd3 {[%emt 0:00:00]} Be7 {[%emt 0:00:00]} 7. O-O {[%emt 0:00:00]} Nc6 {[%emt 0:00:00]} 8. Re1 {[%emt 0:00:04]} Bg4 {[%emt 0:00:02]} 9. c3 {[%emt 0:00:15]} O-O {[%emt 0:00:05]} 10. Nbd2 {[%emt 0:00:31]} f5 {[%emt 0:00:13]} 11. h3 {[%emt 0:00:26]} Bh5 {[%emt 0:00:04]} 12. Qb3 {[%emt 0:00:31]} Kh8 {[%emt 0:00:03]} 13. Qxb7 {[%emt 0:00:52]} Qd6 {[%emt 0:00:23]} 14. Ne5 {[%emt 0:00:33]} Nxe5 {[%emt 0:01:08]} 15. dxe5 {[%emt 0:00:01]} Qxe5 {[%emt 0:00:19]} 16. Nf3 {[%emt 0:00:51]} Bxf3 {[%emt 0:01:13]} 17. gxf3 {[%emt 0:00:02]} Rab8 {[%emt 0:00:47]} 18. Qxa7 Bh4 {[%emt 0:00:50]} 19. fxe4 {[%emt 0:02:22]} fxe4 {[%emt 0:00:06]} 20. Re2 {[%emt 0:00:19]} Rb6 {[%emt 0:00:18]} 21. Bc2 {[%emt 0:06:57]} Qh5 {[%emt 0:01:09]} 22. Kf1 {[%emt 0:02:54]} Qf3 {[%emt 0:00:11]} 23. Ke1 {[%emt 0:01:48]} Bxf2+ {[%emt 0:00:04]} 24. Kd2 {[%emt 0:00:04]} e3+ {[%emt 0:00:04]} 0-1

[Event "African Games-chT 2019"]
[Site "Casablanca"]
[Date "2019.08.25"]
[Round "9.25"]
[White "Rita, Jeorciley"]
[Black "Marie, Patrick"]
[Result "0-1"]
[ECO "A46"]
[WhiteElo "1920"]
[BlackElo "1921"]
[Annotator "NA"]
[PlyCount "54"]
[EventDate "2019.08.24"]
[EventType "team-tourn"]
[EventCountry "MAR"]
[SourceTitle "playchess.com"]
[Source "ChessBase"]
[SourceQuality "1"]
[WhiteTeam "STP"]
[BlackTeam "Mauritius"]
[BlackTeamCountry "MRI"]
[TimeControl "900+10"]

1. d4 {[%emt 0:00:00]} Nf6 {[%emt 0:00:00]} 2. Nf3 {[%emt 0:00:00]} e6 {[%emt 0:00:00]} 3. Bg5 {[%emt 0:00:00]} Be7 {[%emt 0:00:11]} 4. e3 {[%emt 0:00:01]} O-O {[%emt 0:00:04]} 5. Bd3 {[%emt 0:00:01]} b6 {[%emt 0:00:18]} 6. Nbd2 {[%emt 0:00:12]} Bb7 {[%emt 0:00:26]} 7. c3 {[%emt 0:00:33]} d6 {[%emt 0:00:49]} 8. Qc2 {[%emt 0:00:05]} Nbd7 {[%emt 0:00:11]} 9. h3 {[%emt 0:01:38]} c5 {[%emt 0:00:47]} 10. O-O {[%emt 0:00:45]} cxd4 {[%emt 0:00:04]} 11. exd4 {[%emt 0:00:02]} h6 {[%emt 0:00:18]} 12. Bh4 {[%emt 0:00:02]} Rc8 {[%emt 0:00:11]} 13. Nh2 {[%emt 0:00:39]} Nd5 {[%emt 0:00:08]} 14. Bxe7 {[%emt 0:00:09]} Qxe7 {[%emt 0:00:03]} 15. a3 {[%emt 0:00:51]} Nf4 {[%emt 0:00:19]} 16. Be4 {[%emt 0:00:12]} Nf6 {[%emt 0:02:08]} 17. Bxb7 {[%emt 0:00:16]} Qxb7 {[%emt 0:00:02]} 18. Nhf3 {[%emt 0:00:49]} Qd5 {[%emt 0:01:09]} 19. Rae1 {[%emt 0:00:35]} Qh5 {[%emt 0:01:13]} 20. Re3 {[%emt 0:02:49]} N6d5 {[%emt 0:00:33]} 21. Ree1 {[%emt 0:01:18]} f5 {[%emt 0:00:01]} 22. Nh2 {[%emt 0:01:48]} Rf6 {[%emt 0:00:35]} 23. Qd1 {[%emt 0:00:59]} Qg5 {[%emt 0:01:40]} 24. Qf3 {[%emt 0:00:48]} Rg6 {[%emt 0:01:11]} 25. g3 {[%emt 0:02:35]} Nxh3+ {[%emt 0:00:11]} 26. Kh1 {[%emt 0:00:01]} Qxd2 {[%emt 0:00:04]} 27. Qh5 {[%emt 0:00:57]} Nxf2+ {[%emt 0:00:41]} 0-1

[Event "African Games-chT 2019"]
[Site "Casablanca"]
[Date "2019.08.25"]
[Round "9.26"]
[White "Naipal, Hoolan"]
[Black "Espirito Santo, Waldyr"]
[Result "0-1"]
[ECO "C65"]
[WhiteElo "1785"]
[BlackElo "1923"]
[Annotator "NA"]
[PlyCount "94"]
[EventDate "2019.08.24"]
[EventType "team-tourn"]
[EventCountry "MAR"]
[SourceTitle "playchess.com"]
[Source "ChessBase"]
[SourceQuality "1"]
[WhiteTeam "Mauritius"]
[BlackTeam "STP"]
[WhiteTeamCountry "MRI"]
[TimeControl "900+10"]

1. e4 {[%emt 0:00:00]} e5 {[%emt 0:00:00]} 2. Nf3 {[%emt 0:00:00]} Nc6 {[%emt 0:00:00]} 3. Bb5 {[%emt 0:00:00]} Nf6 {[%emt 0:00:06]} 4. d3 {[%emt 0:00:00]} d6 {[%emt 0:00:11]} 5. c3 {[%emt 0:00:03]} Bd7 {[%emt 0:00:03]} 6. O-O {[%emt 0:00:36]} Be7 {[%emt 0:00:04]} 7. Re1 {[%emt 0:00:07]} O-O {[%emt 0:00:03]} 8. Ba4 {[%emt 0:00:37]} a6 {[%emt 0:00:17]} 9. Nbd2 {[%emt 0:00:10]} b5 {[%emt 0:00:03]} 10. Bc2 {[%emt 0:00:06]} Na5 {[%emt 0:00:13]} 11. b4 {[%emt 0:00:21]} Nb7 {[%emt 0:00:14]} 12. a4 {[%emt 0:01:49]} c5 {[%emt 0:00:23]} 13. axb5 {[%emt 0:00:58]} axb5 {[%emt 0:00:09]} 14. Rxa8 {[%emt 0:00:08]} Qxa8 {[%emt 0:00:02]} 15. d4 {[%emt 0:00:45]} Qb8 {[%emt 0:01:15]} 16. dxe5 {[%emt 0:00:52]} dxe5 {[%emt 0:00:06]} 17. bxc5 {[%emt 0:00:45]} Bxc5 {[%emt 0:00:32]} 18. Nb3 {[%emt 0:00:14]} Bb6 {[%emt 0:00:24]} 19. Be3 {[%emt 0:00:52]} Bxe3 {[%emt 0:02:13]} 20. Rxe3 {[%emt 0:00:01]} Be6 {[%emt 0:00:09]} 21. h3 {[%emt 0:05:31]} g6 {[%emt 0:00:33]} 22. Ng5 {[%emt 0:00:47]} Bc4 {[%emt 0:00:36]} 23. Qe1 {[%emt 0:00:24]} h6 {[%emt 0:00:40]} 24. Nf3 {[%emt 0:00:12]} Rd8 {[%emt 0:00:39]} 25. Nfd2 {[%emt 0:01:21]} Qd6 {[%emt 0:01:36]} 26. Nxc4 {[%emt 0:02:20]} bxc4 {[%emt 0:00:02]} 27. Nc1 {[%emt 0:00:05]} Nc5 {[%emt 0:00:23]} 28. Na2 {[%emt 0:00:19]} Qd2 {[%emt 0:00:41]} 29. Nb4 {[%emt 0:00:12]} Kf8 {[%emt 0:01:18]} 30. Re2 {[%emt 0:00:10]} Qg5 {[%emt 0:00:22]} 31. Nd5 {[%emt 0:00:09]} Nxd5 {[%emt 0:00:12]} 32. exd5 {[%emt 0:00:02]} Rxd5 {[%emt 0:00:03]} 33. Be4 {[%emt 0:00:21]} Nd3 {[%emt 0:00:26]} 34. Bxd3 {[%emt 0:00:06]} cxd3 {[%emt 0:00:02]} 35. Rd2 {[%emt 0:00:06]} Qf5 {[%emt 0:00:19]} 36. Qe3 {[%emt 0:00:06]} Kg7 {[%emt 0:00:20]} 37. f3 {[%emt 0:00:14]} e4 38. f4 {[%emt 0:00:00] exf3 Qxf3 Qxf3 gxf3} Kf6 {[%emt 0:01:15]} 39. Kf2 {[%emt 0:00:00] Ke5 Ke3} g5 {[%emt 0:00:56]} 40. c4 {[%emt 0:00:36]} Rd4 {[%emt 0:00:12]} 41. Rxd3 {[%emt 0:00:09]} Rxc4 {[%emt 0:00:08]} 42. Rd7 {[%emt 0:00:10] f5 Kf2 Kf4 Rd2} h5 {[%emt 0:01:01] Kg2 Ke3 Rf2 Rf4} 43. Kg3 {[%emt 0:00:13]} Ra4 {[%emt 0:03:41] Rb2} 44. h4 {[%emt 0:00:00] Kg2} Ra3 {[%emt 0:00:12] Rc2} 45. Rd3 {[%emt 0:00:00] Rc5 Rd2+ Kf1 Kf4} Rc3 {[%emt 0:00:00] Rh2 Kg1 Rxh3 Kg2 Rg3+} 46. Kf2 {[%emt 0:00:22]} g4 {[%emt 0:00:00] Rc4+ Kg5 fxg4 fxg4 Rc5+ Kg6 Rc6+ Kf5 Rc5+ Ke4 Rh5 Rf3+ Kg2 h3+} 47. Kg1 {[%emt 0:00:00] Kf4 Rb5 Kg3 Rb2} Ra3 {[%emt 0:00:00]} 0-1